fUSD/lending_fUSD_20260323
["ID","MTS","AMOUNT","RATE_DAILY","PERIOD"]
[408815562,1774290988983,-151.0,0.00046479,120]
[408815563,1774290989024,-12435.76591045,0.00046479,120]
[408815564,1774290989066,-646.65982735,0.00046479,120]
[408815565,1774290989111,-500.0,0.00046479,120]
[408815566,1774290989155,-589.50601695,0.00046479,120]
[408815567,1774290989194,-500.0,0.00046479,120]
[408815568,1774290989231,-151.0,0.00046479,120]
[408815569,1774290989268,-500.0,0.00046479,120]
[408815570,1774290989306,-500.0,0.00046479,120]
[408815571,1774290989345,-151.0,0.00046479,120]
[408815572,1774290989381,-500.0,0.00046479,120]
[408815573,1774290989417,-500.0,0.00046479,120]
[408815574,1774290989452,-151.0,0.00046479,120]
[408815575,1774290989493,-500.0,0.00046479,120]
[408815576,1774290989531,-483.26661068,0.00046479,120]
[408815577,1774290989568,-500.0,0.00046479,120]
[408815578,1774290989605,-151.0,0.00046479,120]
[408815579,1774290989642,-500.0,0.00046479,120]
[408815580,1774290989680,-220.0,0.00046479,120]
[408815581,1774290989716,-500.0,0.00046479,120]
[408815582,1774290989753,-151.0,0.00046479,120]
[408815583,1774290989791,-1254.1542075,0.00046479,120]
[408815584,1774290989829,-151.0,0.00046479,120]
[408815585,1774290989868,-151.0,0.00046479,120]
[408815586,1774290989906,-500.0,0.00046479,120]
[408815587,1774290989943,-220.0,0.00046479,120]
[408815588,1774290989983,-151.0,0.00046479,120]
[408815589,1774290990021,-5000.0,0.00046479,120]
[408815590,1774290990059,-500.0,0.00046479,120]
[408815591,1774290990099,-151.0,0.00046479,120]
[408815592,1774290990138,-151.0,0.00046479,120]
[408815593,1774290990176,-151.0,0.00046479,120]
[408815594,1774290990214,-500.0,0.00046479,120]
[408815595,1774290990253,-297.18787858,0.00046479,120]
[408815596,1774290990292,-151.0,0.00046479,120]
[408815597,1774290990332,-5000.0,0.00046479,120]
[408815598,1774290990370,-151.0,0.00046479,120]
[408815599,1774290990409,-500.0,0.00046479,120]
[408815600,1774290990448,-151.0,0.00046479,120]
[408815601,1774290990486,-151.0,0.00046479,120]
[408815602,1774290990522,-500.0,0.00046479,120]
[408815603,1774290990558,-151.0,0.00046479,120]
[408815604,1774290990595,-5000.0,0.00046479,120]
[408815605,1774290990631,-151.0,0.00046479,120]
[408815606,1774290990668,-500.0,0.00046479,120]
[408815607,1774290990705,-151.0,0.00046479,120]
[408815608,1774290990743,-500.0,0.00046479,120]
[408815609,1774290990793,-160.0,0.00046479,120]
[408815610,1774290990833,-151.0,0.00046479,120]
[408815611,1774290990871,-213.97260477,0.00046479,120]
[408815612,1774290990908,-5000.0,0.00046479,120]
[408815613,1774290990944,-151.0,0.00046479,120]
[408815614,1774290990981,-500.0,0.00046479,120]
[408815615,1774290991021,-500.0,0.00046479,120]
[408815616,1774290991060,-160.0,0.00046479,120]
[408815617,1774290991099,-151.0,0.00046479,120]
[408815618,1774290991138,-2000.0,0.00046479,120]
[408815619,1774290991180,-151.0,0.00046479,120]
[408815620,1774290991223,-5000.0,0.00046479,120]
[408815621,1774290991264,-151.0,0.00046479,120]
[408815622,1774290991824,-500.0,0.00046479,120]
[408815623,1774290991883,-160.0,0.00046479,120]
[408815624,1774290991923,-151.0,0.00046479,120]
[408815625,1774290991961,-2000.0,0.00046479,120]
[408815626,1774290991998,-151.0,0.00046479,120]
[408815627,1774290992034,-5000.0,0.00046479,120]
[408815628,1774290992070,-151.0,0.00046479,120]
[408815629,1774290992106,-290.21422574,0.00046479,120]
[408815630,1774290992143,-500.0,0.00046479,120]
[408815631,1774290992183,-500.0,0.00046479,120]
[408815632,1774290992221,-151.0,0.00046479,120]
[408815633,1774290992258,-5000.0,0.00046479,120]
[408815634,1774290992295,-500.0,0.00046479,120]
[408815635,1774290992332,-151.0,0.00046479,120]
[408815636,1774290992370,-5000.0,0.00046479,120]
[408815637,1774290992405,-500.0,0.00046479,120]
[408815638,1774290992440,-151.0,0.00046479,120]
[408815639,1774290992477,-5000.0,0.00046479,120]
[408815640,1774290992512,-250.0,0.00046479,120]
[408815641,1774290992549,-10000.0,0.00046479,120]
[408815642,1774290992585,-151.0,0.00046479,120]
[408815643,1774290992623,-5548.45235765,0.00046479,120]
[408815644,1774290992660,-4554.35817795,0.00046479,120]
[408815645,1774290992696,-250.0,0.00046479,120]
[408815646,1774290992736,-500.0,0.00046479,120]
[408815647,1774290992776,-151.0,0.00046479,120]
[408815648,1774290992816,-151.0,0.00046479,120]
[408815649,1774290992853,-250.0,0.00046479,120]
[408815650,1774290992890,-500.0,0.00046479,120]
[408815651,1774290992927,-151.0,0.00046479,120]
[408815652,1774290992964,-2124.56718979,0.00046479,120]
[408815653,1774290993007,-151.0,0.00046479,120]
[408815654,1774290993046,-250.0,0.00046479,120]
[408815655,1774290993084,-156.587,0.00046479,120]
[408815656,1774290993123,-500.0,0.00046479,120]
[408815657,1774290993162,-151.0,0.00046479,120]
[408815658,1774290993201,-250.0,0.00046479,120]
[408815659,1774290993241,-151.0,0.00046479,120]
[408815660,1774290993280,-162.380719,0.00046479,120]
[408815661,1774290993323,-500.0,0.00046479,120]
[408815662,1774290993362,-151.0,0.00046479,120]
[408815663,1774290993405,-151.0,0.00046479,120]
[408815664,1774290993443,-361977.00056461,0.0004648,120]
[408815665,1774290993480,-2000000.0,0.0004648,120]
[408815666,1774290993516,-1599999.0,0.0004648,120]
[408815667,1774290993552,-851.0,0.0004648,120]
[408815668,1774290993590,-1620832.93199257,0.0004648,120]
[408815683,1774291831910,-250.0,0.00013,2]
[408815685,1774291831922,-311.0,0.00013,2]
[408815687,1774291831931,-144.08286746,0.00013937,2]
[408815688,1774291831943,-355.91713254,0.00013937,2]
[408815689,1774291831952,-188.10286746,0.00013937,2]
[408815690,1774291831964,-311.89713254,0.00013937,2]
[408815691,1774291831972,-179.13891716,0.00013937,2]
[408815692,1774291831982,-15.86108284,0.00013937,2]
[408815693,1774291831990,-195.0,0.00013937,2]
[408815694,1774291831998,-131.622068,0.00013937,2]
[408815695,1774291832008,-63.377932,0.00013937,2]
[408815696,1774291832016,-517.0,0.00014,2]
[408815697,1774291832025,-2475.43214386,0.0001401,2]
[408815698,1774291832034,-250.0,0.000143,2]
[408815699,1774291832044,-500.0,0.000143,2]
[408815700,1774291832053,-500.0,0.000143,2]
[408815701,1774291832062,-600.0,0.000143,2]
[408815702,1774291832072,-600.0,0.000143,2]
[408815704,1774291832082,-600.0,0.000143,2]
[408815706,1774291832091,-600.0,0.000143,2]
[408815708,1774291832100,-600.0,0.000143,2]
[408815710,1774291832110,-300.0,0.000143,2]
[408815712,1774291832120,-300.0,0.000143,2]
[408815714,1774291832129,-300.0,0.000143,2]
[408815716,1774291832138,-300.0,0.000143,2]
[408815717,1774291832147,-300.0,0.000143,2]
[408815718,1774291832156,-500.0,0.000143,2]
[408815719,1774291832166,-195.0,0.000143,2]
[408815720,1774291832175,-300.0,0.00015,2]
[408815721,1774291832184,-250.0,0.0001698,2]
[408815722,1774291832194,-534.0,0.00018932,2]
[408815723,1774291832203,-517.0,0.00019077,6]
[408815724,1774291832212,-358.32983371,0.00022,2]
[408815725,1774291832221,-472.82,0.00022016,2]
[408815726,1774291832231,-11077.65,0.00022016,2]
[408815727,1774291832244,-152.25,0.00023937,2]
[408815728,1774291832253,-517.0,0.00024154,10]
[408815729,1774291832262,-172.43,0.00024195,2]
[408815730,1774291832272,-2000.0,0.00024377,2]
[408815731,1774291832281,-200.0,0.00024464,2]
[408815732,1774291832290,-150.0,0.00024658,2]
[408815733,1774291832299,-787.52,0.0002485,120]
[408815734,1774291832309,-600.9,0.00025173,2]
[408815735,1774291832318,-979.16666667,0.00025564,2]
[408815736,1774291832327,-150.0,0.0002589,2]
[408815737,1774291832337,-200.0,0.00025968,2]
[408815738,1774291832346,-191.68405475,0.000265,63]
[408815739,1774291832355,-166.26343438,0.000265,63]
[408815740,1774291832364,-246.89369727,0.000265,63]
[408815741,1774291832374,-206.57856582,0.000265,63]
[408815742,1774291832383,-1100.0,0.000265,9]
[408815743,1774291832392,-2500.0,0.00026568,2]
[408815744,1774291832401,-187.08029841,0.00026573,2]
[408815745,1774291832411,-5000.0,0.00026579,2]
[408815746,1774291832420,-808.2154078,0.00026579,2]
[408815747,1774291832430,-2200.0,0.000266,9]
[408815748,1774291832439,-500.0,0.00026668,2]
[408815749,1774291832448,-500.0,0.00026668,2]
[408815750,1774291832456,-500.0,0.00026668,2]
[408815751,1774291832466,-500.0,0.00026668,2]
[408815752,1774291832474,-500.0,0.00026668,2]
[408815753,1774291832483,-500.0,0.00026668,2]
[408815754,1774291832492,-500.0,0.00026668,2]
[408815755,1774291832502,-324.99815439,0.00026668,2]
[408815756,1774291832510,-167.47929119,0.00026673,2]
[408815757,1774291832519,-150.0,0.00026678,2]
[408815758,1774291832528,-500.0,0.00026678,2]
[408815759,1774291832537,-500.0,0.00026678,2]
[408815760,1774291832546,-500.0,0.00026678,2]
[408815761,1774291832555,-512.27328521,0.00026678,2]
[408815762,1774291832564,-197.80259097,0.00026678,2]
[408815763,1774291832573,-162.50691078,0.00026678,2]
[408815764,1774291832582,-500.0,0.00026678,2]
[408815765,1774291832591,-500.0,0.00026678,2]
[408815766,1774291832601,-255.06,0.00026678,2]
[408815767,1774291832615,-1390444.3304747,0.00026679,2]
[408815768,1774291832627,-1712.27356767,0.00026679,2]
[408815769,1774291832637,-823.641,0.00026679,2]
[408815770,1774291832649,-581.41819803,0.00026679,2]
[408815771,1774291837942,-25571.10510767,0.00026679,2]
[408815772,1774291838105,-2000.0,0.00026679,2]
[408815993,1774291840208,-703.03080375,0.00026679,2]
[408816000,1774291840262,-3459.58406542,0.00026679,2]
[408816005,1774291840315,-348.885,0.00026679,2]
[408816008,1774291840326,-858.14,0.00026679,2]
[408816046,1774291840686,-97097.64031694,0.00026679,2]
[408816048,1774291840697,-50109.61685451,0.00026679,2]
[408816540,1774291845483,-544.02,0.00026545,2]
[408816541,1774291845493,-137.74212011,0.00026679,2]
[408816542,1774291845536,-2634.58851174,0.00026679,2]
[408816543,1774291845547,-5124.7314335,0.00026679,2]
[408816544,1774291845558,-1225.53057626,0.00026679,2]
[408816573,1774291845854,-310.25882034,0.00026679,2]
[408816579,1774291845908,-4997.511659,0.00026679,2]
[408816582,1774291845920,-3145.76343513,0.00026679,2]
[408816687,1774292728503,-173.57,0.00012849,2]
[408816688,1774292728526,-518.0,0.00014,2]
[408816689,1774292728550,-1200.0,0.00014133,2]
[408816690,1774292728572,-500.0,0.00014134,2]
[408816691,1774292728597,-600.0,0.00014134,2]
[408816692,1774292728619,-600.0,0.00014134,2]
[408816693,1774292728640,-600.0,0.00014134,2]
[408816694,1774292728661,-600.0,0.00014134,2]
[408816695,1774292728682,-600.0,0.00014134,2]
[408816696,1774292728704,-250.0,0.00014134,2]
[408816697,1774292728726,-300.0,0.00014134,2]
[408816698,1774292728748,-300.0,0.00014134,2]
[408816699,1774292728768,-300.0,0.00014134,2]
[408816700,1774292728788,-500.0,0.00014134,2]
[408816701,1774292729213,-500.0,0.00014134,2]
[408816702,1774292729278,-500.0,0.00014134,2]
[408816703,1774292729301,-500.0,0.00014134,2]
[408816704,1774292729322,-300.0,0.00014134,2]
[408816705,1774292729343,-300.0,0.00014134,2]
[408816706,1774292729372,-2500.0,0.00014134,2]
[408816707,1774292729396,-2500.0,0.00014878,2]
[408816708,1774292729419,-2500.0,0.00014878,2]
[408816709,1774292729579,494.0,0.00019033,5]
[408816710,1774292729624,633.0,0.00019033,5]
[408816711,1774292752255,-173.57,0.00019273,2]
[408816712,1774292752279,-474.0,0.00019363,5]
[408816713,1774292752306,-606.0,0.00019363,5]
[408816714,1774292753147,434.0,0.00019363,5]
[408816715,1774292753296,556.0,0.00019363,5]
[408816716,1774292754050,435.0,0.00019363,5]
[408816717,1774292754138,507.0,0.00017,2]
[408816718,1774292754919,558.0,0.00019363,5]
[408816719,1774292755786,834.0,0.00019363,5]
[408816720,1774292756812,535.0,0.00019363,5]
[408816721,1774292757160,764.0,0.00019363,5]
[408816722,1774292759369,700.0,0.00019363,5]
[408816723,1774292759756,512.0,0.00019363,5]
[408816724,1774292760769,642.0,0.00019363,5]
[408816725,1774292760894,491.0,0.00019363,5]
[408816726,1774292761985,589.0,0.00019363,5]
[408816727,1774292763691,471.0,0.00019363,5]
[408816728,1774292763746,540.0,0.00019363,5]
[408816729,1774292764316,471.0,0.00019363,5]
[408816730,1774292764503,540.0,0.00019363,5]
[408816731,1774292765534,431.0,0.00019363,5]
[408816732,1774292766035,450.0,0.00019363,5]
[408816733,1774292767336,826.0,0.00019363,5]
[408816734,1774292767470,1235.0,0.00019363,5]
[408816735,1774292768418,757.0,0.00019363,5]
[408816736,1774292769098,1067.0,0.00019363,5]
[408816737,1774292769662,694.0,0.00019363,5]
[408816738,1774292770242,800.0,0.00019363,5]
[408816739,1774292771247,636.0,0.00019363,5]
[408816740,1774292771766,600.0,0.00019363,5]
[408816741,1774292772318,636.0,0.00019363,5]
[408816742,1774292773115,450.0,0.00019363,5]
[408816743,1774292775450,530.0,0.00019363,5]
[408816744,1774292775582,337.0,0.00019363,5]
[408816745,1774292776535,337.0,0.00019363,5]
[408816746,1774292776634,486.0,0.00019363,5]
[408816747,1774292778073,673.0,0.00019363,5]
[408816748,1774292778195,446.0,0.00019363,5]
[408816749,1774292779618,1225.0,0.00019363,5]
[408816750,1774292780794,919.0,0.00019363,5]
[408816751,1774292782198,689.0,0.00019363,5]
[408816752,1774292798729,517.0,0.00019363,5]
[408816753,1774292799124,-500.0,0.00020164,2]
[408816754,1774292799147,-250.0,0.00020273,2]
[408816755,1774292799169,-300.0,0.00020273,2]
[408816756,1774292799190,-600.0,0.00020382,2]
[408816757,1774292799212,-518.0,0.000206,7]
[408816758,1774292799444,517.0,0.00019363,5]
[408816759,1774292801871,258.0,0.000206,10]
[408816760,1774292803543,772.0,0.000206,10]
[408816761,1774292817543,-300.0,0.00021096,2]
[408816762,1774292817565,-300.0,0.00021096,2]
[408816763,1774292817590,-300.0,0.00021096,2]
[408816765,1774293032065,-516.0,0.00014,2]
[408816766,1774293032075,-200.77233063,0.000199,2]
[408816768,1774293032085,-200.0,0.0002,2]
[408816769,1774293032095,-516.0,0.00021333,8]
[408816770,1774293032105,-600.0,0.00022154,2]
[408816771,1774293032115,-336.44994161,0.00022154,2]
[408816772,1774293032127,-263.55005839,0.00022154,2]
[408816773,1774293032136,-362.55698444,0.00022154,2]
[408816774,1774293032147,-237.44301556,0.00022154,2]
[408816775,1774293032156,-66.86354891,0.00022167,2]
[408816828,1774293032803,-233.13645109,0.00022167,2]
[408816830,1774293032811,-447.57041782,0.0002218,2]
[408816832,1774293032825,-459.17340473,0.0002218,2]
[408816834,1774293032836,-293.25617745,0.0002218,2]
[408816836,1774293032846,-6.74382255,0.00022181,2]
[408816838,1774293032857,-593.25617745,0.00022181,2]
[408816839,1774293032867,-250.0,0.00022181,2]
[408816841,1774293032877,-300.0,0.00022181,2]
[408816842,1774293032887,-161.07181602,0.00022181,2]
[408816843,1774293032896,-979.16666667,0.00022736,2]
[408816844,1774293032905,-300.0,0.00022851,2]
[408816845,1774293032915,-300.0,0.00022851,2]
[408816846,1774293032923,-92.37406717,0.00023311,2]
[408816848,1774293038091,-57.62593283,0.00023311,2]
[408816849,1774293038100,-5000.0,0.000235,2]
[408816850,1774293038109,-166.66,0.00023516,30]
[408816851,1774293038119,-166.66,0.00024011,30]
[408816852,1774293038129,-300.0,0.00024369,2]
[408816853,1774293038138,-600.0,0.00024369,2]
[408816854,1774293038147,-150.0,0.00024464,2]
[408816855,1774293038156,-166.66,0.00024506,30]
[408816856,1774293038165,-202.6,0.00024517,2]
[408816857,1774293038174,-150.0,0.00024658,2]
[408816858,1774293038184,-3240.0,0.00024687,2]
[408816859,1774293038193,-166.66,0.00025001,30]
[408816860,1774293038202,-150.0,0.0002514,2]
[408816861,1774293038211,-217.8,0.00025169,2]
[408816862,1774293038220,-166.66,0.00025496,30]
[408816863,1774293038229,-150.0,0.00025616,2]
[408816864,1774293038237,-20663.12414475,0.00025617,2]
[408816865,1774293038249,-308.5174995,0.00025617,2]
[408816866,1774293038260,-6695.77575555,0.00025617,2]
[408816867,1774293038269,-173.57,0.00025698,2]
[408816868,1774293038279,-150.0,0.0002589,2]
[408816869,1774293038287,-1500.0,0.00025953,120]
[408816870,1774293038296,-166.66,0.00025991,30]
[408816871,1774293038305,-4334.8442,0.00026468,2]
[408816872,1774293038314,-1000.0,0.00026468,2]
[408816873,1774293038323,-6761.4828,0.00026468,2]
[408816874,1774293038332,-10228.521,0.00026468,2]
[408816875,1774293038341,-168.37226856,0.00026478,2]
[408816876,1774293038350,-3262.7566,0.00026479,2]
[408816877,1774293038359,-38797.5817,0.00026479,2]
[408816878,1774293038368,-5000.0,0.00026479,2]
[408816879,1774293038377,-2191.92962496,0.00026479,2]
[408816880,1774293038386,-588.85840093,0.00026479,2]
[408816881,1774293038395,-2186.87713259,0.00026479,2]
[408816882,1774293038405,-673.5128398,0.00026479,2]
[408816883,1774293038414,-500.0,0.00026578,2]
[408816884,1774293038423,-500.0,0.00026578,2]
[408816885,1774293038433,-313.75483754,0.00026578,2]
[408816886,1774293038442,-500.0,0.00026578,2]
[408816887,1774293038451,-408.59129965,0.00026578,2]
[408816888,1774293038461,-424.99979493,0.00026578,2]
[408816889,1774293038469,-1136.438,0.00026578,13]
[408816890,1774293038478,-150.0,0.00026578,2]
[408816891,1774293038488,-145423.34344641,0.00026579,2]
[408816892,1774293038499,-8623.11486895,0.00026579,2]
[408816893,1774293038510,-1622.51634566,0.00026579,2]
[408816894,1774293038521,-1109.46657654,0.00026579,2]
[408816895,1774293038533,-608.3677347,0.00026579,2]
[408816896,1774293038544,-284.0,0.00026579,2]
[408816897,1774293038555,-903.93718342,0.00026579,2]
[408816898,1774293038566,-943.95867498,0.00026579,2]
[408816899,1774293038577,-1827.21868921,0.00026579,2]
[408816902,1774293040289,-269.04626348,0.00026579,2]
[408816903,1774293040343,-2541.70125392,0.00026579,2]
[408816904,1774293040354,-350.33533698,0.00026579,2]
[408816905,1774293040366,-2659.18363544,0.00026579,2]
[408816906,1774293040398,-6633.13592568,0.00026579,2]
[408816907,1774293040409,-1913.01757842,0.00026579,2]
[408816908,1774293040420,-7997.36064861,0.00026579,2]
[408816909,1774293040431,-1483.27233537,0.00026579,2]
[408816910,1774293040718,-892.18335078,0.00026579,2]
[408816911,1774293040729,-3600.0,0.00026579,2]
[408816912,1774293040740,-1902.07,0.00026579,2]
[408816930,1774293044212,-57832.96174704,0.00026579,2]
[408816931,1774293044656,-3688.0930694,0.00026579,2]
[408816932,1774293044668,-11723.64423464,0.00026579,2]
[408816933,1774293044680,-972.59568653,0.00026579,2]
[408816948,1774293046033,-9112.62272043,0.00026579,2]
[408816949,1774293046044,-12378.48821156,0.00026579,2]
[408816950,1774293046246,-382.94399198,0.00026579,2]
[408816951,1774293046257,-300.15125318,0.00026579,2]
[408816952,1774293046268,-999.0,0.00026579,2]
[408816953,1774293046301,-350.0,0.00026579,2]
[408816954,1774293046312,-872.25527299,0.00026579,2]
[408816955,1774293046356,-1252.7791,0.00026579,2]
[408816956,1774294136001,5489.65441872,9.5e-05,3]
[408816963,1774294232222,-517.0,0.00014,2]
[408816964,1774294232231,-126.82857995,0.00014044,2]
[408816982,1774294233426,-353.5,0.00014044,2]
[408816983,1774294233437,-119.67142005,0.00014044,2]
[408816984,1774294233446,-300.0,0.00014088,2]
[408816985,1774294233455,-600.0,0.00014447,2]
[408816986,1774294233464,-600.0,0.00014447,2]
[408816987,1774294233473,-600.0,0.00014447,2]
[408816988,1774294233482,-300.0,0.00014649,2]
[408816989,1774294233491,-300.0,0.00014649,2]
[408816990,1774294233499,-300.0,0.00014649,2]
[408816991,1774294233509,-2330.01,0.00015322,2]
[408816992,1774294233518,-300.0,0.000154,2]
[408816993,1774294233526,-600.0,0.000154,2]
[408816994,1774294233535,-151.53504174,0.00015924,2]
[408816995,1774294233544,-2338.55807223,0.00016,2]
[408816996,1774294233558,-18575.64297893,0.00016,2]
[408816997,1774294233568,-699.0,0.00016,2]
[408817000,1774294238397,-4847.94218682,0.00016,2]
[408817001,1774294238409,-997.91895596,0.00016,2]
[408817002,1774294238456,-6091.72679898,0.00016,2]
[408817003,1774294238511,-71320.00000001,0.00016,2]
[408817004,1774294238568,-15644.63681557,0.00016,2]
[408817023,1774294244682,-303.81518612,0.00016,2]
[408817024,1774294244693,-275.0,0.00016,2]
[408817025,1774294244711,-603.0,0.00016,2]
[408817026,1774294244729,-937.70955075,0.00016,2]
[408817027,1774294244745,-10800.0,0.00016,2]
[408817028,1774294246457,-261.02,0.00016,2]
[408817032,1774294882917,206.07171962,9.511e-05,2]
[408817033,1774294883509,791.93163213,9.511e-05,2]
[408817034,1774295190123,-250.0,0.00013,2]
[408817035,1774295190143,-250.0,0.00013381,2]
[408817036,1774295190165,-600.0,0.00013762,2]
[408817037,1774295190185,-600.0,0.00013762,2]
[408817038,1774295190207,-600.0,0.00013762,2]
[408817039,1774295190231,-600.0,0.00013762,2]
[408817040,1774295190252,-250.0,0.00013837,2]
[408817041,1774295190274,-515.0,0.00014,2]
[408817042,1774295190294,-600.0,0.000143,2]
[408817043,1774295190314,-300.0,0.000143,2]
[408817044,1774295190334,-300.0,0.000143,2]
[408817045,1774295190355,-300.0,0.000143,2]
[408817046,1774295190374,-300.0,0.000143,2]
[408817047,1774295190394,-141.47616363,0.000143,2]
[408817050,1774295431386,-515.0,0.00014,2]
[408817051,1774295431395,-266.51955281,0.00014405,2]
[408817052,1774295431406,-333.48044719,0.00014405,2]
[408817053,1774295431416,-128.63020994,0.0001451,2]
[408817054,1774295431427,-171.36979006,0.0001451,2]
[408817055,1774295431437,-1033.30280266,0.0001472,2]
[408817056,1774295431448,-41.69719734,0.0001472,2]
[408817057,1774295431457,-535.99506158,0.00014812,2]
[408817058,1774295431468,-664.00493842,0.00014812,2]
[408817059,1774295431477,-600.0,0.00014813,2]
[408817060,1774295431486,-600.0,0.00014813,2]
[408817061,1774295431496,-600.0,0.00014813,2]
[408817062,1774295431505,-300.0,0.00015177,2]
[408817063,1774295431514,-300.0,0.00015177,2]
[408817064,1774295431523,-161.0,0.0001536,2]
[408817065,1774295431532,-3325.75059828,0.0001557,2]
[408817066,1774295431541,-300.0,0.0001573,2]
[408817068,1774295431550,-600.0,0.0001573,2]
[408817070,1774295431559,-300.0,0.0001573,2]
[408817071,1774295431568,-255.0,0.00015899,2]
[408817072,1774295431578,-7188.39731525,0.000159,2]
[408817073,1774295431589,-2000.00000001,0.000159,2]
[408817083,1774295437465,-1310.38674493,0.000159,2]
[408817086,1774295439275,-22878.51966096,0.000159,2]
[408817087,1774295439285,-500.0,0.00015973,2]
[408817088,1774295439294,-500.0,0.00015973,2]
[408817089,1774295439308,-500.0,0.00015973,2]
[408817090,1774295439318,-500.0,0.00015999,2]
[408817091,1774295439328,-500.0,0.00015999,2]
[408817092,1774295439338,-500.0,0.00015999,2]
[408817093,1774295439348,-243.49562344,0.00015999,2]
[408817094,1774295439358,-500.0,0.00015999,2]
[408817095,1774295439367,-270.5904036,0.00015999,2]
[408817096,1774295439377,-500.0,0.00015999,2]
[408817097,1774295439387,-500.0,0.00015999,2]
[408817098,1774295439397,-500.0,0.00015999,2]
[408817099,1774295439407,-500.0,0.00015999,2]
[408817100,1774295439417,-661.3,0.00015999,2]
[408817101,1774295439426,-442.35771877,0.00015999,2]
[408817102,1774295439438,-57.64228123,0.00015999,2]
[408817103,1774295439448,-524.44263512,0.00015999,2]
[408817104,1774295439458,-150.0,0.00015999,2]
[408817105,1774295439467,-948.00212989,0.00016,2]
[408817106,1774295439479,-1122.42091248,0.00016,2]
[408817107,1774295439491,-690.45,0.00016,2]
[408817108,1774295439502,-618.6790189,0.00016,2]
[408817109,1774295439514,-2338.72607654,0.00016,2]
[408817110,1774295439530,-556.0,0.00016,2]
[408817111,1774295439541,-825.89185212,0.00016,2]
[408817112,1774295439779,-439123.02871593,0.00016,2]
[408817113,1774295439790,-200.0,0.00016,2]
[408817114,1774295439799,-2000.0,0.00016,2]
[408817115,1774295439809,-200.0,0.00016,2]
[408817116,1774295439819,-160.0,0.00016033,2]
[408817117,1774295439828,-160.0,0.00016033,2]
[408817118,1774295439838,-3240.0,0.00016147,2]
[408817119,1774295439847,-200.0,0.0001616,2]
[408817120,1774295439857,-640.11,0.00016198,2]
[408817121,1774295439867,-661.3,0.00016273,2]
[408817122,1774295439876,-723.0,0.00016294,2]
[408817123,1774295439886,-500.0,0.00016521,2]
[408817124,1774295439896,-661.3,0.00016547,2]
[408817125,1774295439906,-987.41,0.00016664,2]
[408817126,1774295439916,-661.3,0.00016821,2]
[408817127,1774295439926,-150.0,0.0001683,14]
[408817128,1774295439935,-101376.5878772,0.00016945,2]
[408817129,1774295439945,-500.0,0.00016973,2]
[408817130,1774295439955,-987.41,0.00017081,2]
[408817131,1774295439964,-661.3,0.00017095,2]
[408817132,1774295439974,-661.31815084,0.00017369,2]
[408817133,1774295439983,-6692.46,0.0001741,2]
[408817134,1774295439993,-987.41,0.00017497,2]
[408817135,1774295440003,-987.41,0.00017914,2]
[408817136,1774295440012,-279.0,0.00018169,2]
[408817137,1774295440022,-2000.0,0.00018281,2]
[408817138,1774295440036,-987.41,0.00018331,2]
[408817139,1774295440046,-979.16666667,0.00018808,2]